fUSD/lending_fUSD_20260315
["ID","MTS","AMOUNT","RATE_DAILY","PERIOD"]
[408406294,1773571840176,-500.0,0.000186,2]
[408406296,1773571840186,-500.0,0.000186,2]
[408406297,1773571840195,-500.0,0.000186,2]
[408406298,1773571840203,-500.0,0.000186,2]
[408406299,1773571840212,-909.53474774,0.000186,2]
[408406300,1773571840222,-500.0,0.000186,2]
[408406301,1773571840230,-500.0,0.000186,2]
[408406302,1773571840239,-500.0,0.000186,2]
[408406303,1773571840249,-500.0,0.000186,2]
[408406304,1773571840258,-500.0,0.000186,2]
[408406305,1773571840266,-500.0,0.000186,2]
[408406306,1773571840275,-500.0,0.000186,2]
[408406307,1773571840285,-500.0,0.000186,2]
[408406308,1773571840294,-500.0,0.000186,2]
[408406309,1773571840303,-882.59531611,0.000186,2]
[408406310,1773571840312,-2793.18,0.00018856,2]
[408406311,1773571840321,-153.56106977,0.00018913,2]
[408406312,1773571840330,-956.0,0.00018925,2]
[408406313,1773571840339,-535.39,0.00018984,2]
[408406314,1773571840350,-6453.0,0.00019002,2]
[408406315,1773571840360,-956.0,0.00019083,2]
[408406316,1773571840370,-956.0,0.00019139,2]
[408406317,1773571840381,-2503.69656434,0.00019152,2]
[408406318,1773571840391,-285.09733366,0.00019178,2]
[408406319,1773571840400,-150.23101527,0.00019178,2]
[408406320,1773571840410,-370.20718385,0.00019179,2]
[408406321,1773571840419,-956.0,0.0001925,2]
[408406322,1773571840429,-344.59,0.00019258,2]
[408406323,1773571840438,-956.0,0.00019308,2]
[408406324,1773571840447,-956.0,0.00019391,2]
[408406325,1773571840456,-956.0,0.00019474,2]
[408406326,1773571840465,-956.0,0.00019561,2]
[408406327,1773571840474,-172.9990431,0.00019578,2]
[408406328,1773571840484,-956.0,0.00019597,2]
[408406329,1773571840494,-956.0,0.00019667,2]
[408406330,1773571840503,-956.0,0.00019682,2]
[408406331,1773571840512,-956.0,0.00019707,2]
[408406332,1773571840521,-956.0,0.0001974,2]
[408406333,1773571840530,-2793.18,0.00019798,2]
[408406334,1773571840540,-896.01113346,0.000199,2]
[408406335,1773571840550,-568.0,0.0002,2]
[408406336,1773571840563,-435.0,0.0002,2]
[408406337,1773571840572,-172.6439,0.0002,2]
[408406338,1773571840581,-172.6439,0.0002,2]
[408406339,1773571840590,-172.6439,0.0002,2]
[408406340,1773571840599,-172.6439,0.0002,2]
[408406341,1773571840609,-172.6439,0.0002,2]
[408406342,1773571840619,-172.6439,0.0002,2]
[408406343,1773571840630,-5961.3197056,0.00020114,2]
[408406344,1773571840639,-36352.56,0.00020384,2]
[408406345,1773571840648,-341.0,0.000206,7]
[408406346,1773571840658,-500.0,0.0002065,2]
[408406347,1773571840667,-500.0,0.0002065,2]
[408406348,1773571840677,-504.89540778,0.0002065,2]
[408406349,1773571840686,-501.00594365,0.0002065,2]
[408406350,1773571840695,-350.81480094,0.0002065,2]
[408406351,1773571840704,-500.0,0.0002065,2]
[408406352,1773571840713,-2793.18,0.00020741,2]
[408406353,1773571840723,-9035.0,0.00020902,2]
[408406354,1773571840732,-160.06205431,0.0002106,2]
[408406355,1773571840741,-500.0,0.00021198,2]
[408406356,1773571840751,-1000.0,0.00021198,2]
[408406357,1773571840760,-744.75125332,0.00021198,2]
[408406358,1773571840770,-518.0,0.000215,6]
[408406359,1773571840779,-2000.0,0.000216,2]
[408406360,1773571840788,-2793.18,0.00021684,2]
[408406361,1773571840797,-1500.0,0.00021746,2]
[408406362,1773571840807,-2500.0,0.00021917,2]
[408406363,1773571840816,-2500.0,0.00021917,2]
[408406364,1773571840825,-2500.0,0.00021917,2]
[408406365,1773571840835,-2500.0,0.00021917,2]
[408406366,1773571840844,-2500.0,0.00021917,2]
[408406367,1773571840853,-2500.0,0.00021917,2]
[408406368,1773571840862,-1445.1719844,0.00021917,2]
[408406369,1773571840871,-320.19516941,0.00022167,2]
[408406370,1773571840880,-308.15210792,0.00022276,2]
[408406371,1773571840889,-1500.0,0.00022294,2]
[408406372,1773571840898,-1128.023308,0.00022609,30]
[408406373,1773571840908,-2082.756079,0.0002261,30]
[408406374,1773571840917,-2793.18,0.00022627,2]
[408406375,1773571840926,-250.0,0.00022674,2]
[408406376,1773571840935,-250.0,0.00022674,2]
[408406377,1773571840944,-500.0,0.00022674,2]
[408406378,1773571840953,-250.0,0.00022674,2]
[408406379,1773571840962,-250.0,0.00022674,2]
[408406380,1773571840971,-250.0,0.00022674,2]
[408406381,1773571840980,-1500.0,0.00022674,2]
[408406382,1773571840989,-279.33639356,0.00022674,2]
[408406383,1773571840998,-1500.0,0.00022674,2]
[408406384,1773571841008,-1500.0,0.00022674,2]
[408406386,1773571841017,-1500.0,0.00022674,2]
[408406387,1773571841026,-500.0,0.00022674,2]
[408406388,1773571841035,-1500.0,0.00022674,2]
[408406389,1773571841044,-500.0,0.00022674,2]
[408406390,1773571841054,-1500.0,0.00022674,2]
[408406391,1773571841063,-500.0,0.00022674,2]
[408406392,1773571841072,-1500.0,0.00022674,2]
[408406393,1773571841082,-500.0,0.00022674,2]
[408406394,1773571841092,-1500.0,0.00022674,2]
[408406395,1773571841101,-500.0,0.00022674,2]
[408406396,1773571841110,-1500.0,0.00022674,2]
[408406397,1773571841119,-500.0,0.00022674,2]
[408406398,1773571841128,-1500.0,0.00022674,2]
[408406399,1773571841137,-500.0,0.00022674,2]
[408406400,1773571841146,-151.0,0.00022674,2]
[408406401,1773571841155,-1500.0,0.00022674,2]
[408406402,1773571841164,-500.0,0.00022674,2]
[408406403,1773571841173,-171.86459985,0.00022674,2]
[408406404,1773571841182,-250.0,0.00022674,2]
[408406405,1773571841192,-500.0,0.00022674,2]
[408406406,1773571841202,-500.0,0.00022674,2]
[408406407,1773571841213,-243.57435302,0.00022674,2]
[408406408,1773571841222,-500.0,0.00022674,2]
[408406409,1773571841233,-200.0,0.00022674,2]
[408406410,1773571841245,-174.61919141,0.00022674,2]
[408406411,1773571841254,-500.0,0.00022674,2]
[408406412,1773571841264,-500.0,0.00022674,2]
[408406413,1773571841275,-500.0,0.00022674,2]
[408406414,1773571841284,-500.0,0.00022674,2]
[408406415,1773571841294,-500.0,0.00022674,2]
[408406416,1773571841303,-500.0,0.00022674,2]
[408406417,1773571841312,-500.0,0.00022674,2]
[408406418,1773571841321,-500.0,0.00022674,2]
[408406419,1773571841330,-500.0,0.00022674,2]
[408406420,1773571841339,-500.0,0.00022674,2]
[408406421,1773571841348,-500.0,0.00022674,2]
[408406422,1773571841358,-500.0,0.00022729,2]
[408406423,1773571841367,-151.0,0.00022729,2]
[408406424,1773571841376,-500.0,0.00022784,2]
[408406425,1773571841385,-151.0,0.00022784,2]
[408406426,1773571841394,-504.34667624,0.0002281,2]
[408406427,1773571841403,-500.0,0.0002281,2]
[408406428,1773571841412,-500.0,0.0002281,2]
[408406429,1773571841421,-500.0,0.00022839,2]
[408406430,1773571841430,-151.0,0.00022839,2]
[408406431,1773571841439,-500.0,0.00022894,2]
[408406432,1773571841449,-151.0,0.00022894,2]
[408406433,1773571841458,-150.0,0.00022944,2]
[408406434,1773571841467,-500.0,0.00022949,2]
[408406435,1773571841475,-151.0,0.00022949,2]
[408406436,1773571841484,-12324.0,0.00022992,2]
[408406437,1773571841494,-500.0,0.00023004,2]
[408406438,1773571841507,-151.0,0.00023004,2]
[408406439,1773571841516,-500.0,0.00023059,2]
[408406440,1773571841525,-151.0,0.00023059,2]
[408406441,1773571841535,-500.0,0.00023114,2]
[408406442,1773571841543,-151.0,0.00023114,2]
[408406443,1773571841553,-500.0,0.00023169,2]
[408406444,1773571841564,-151.0,0.00023169,2]
[408406445,1773571841575,-181.08010149,0.00023222,2]
[408406446,1773571841596,-205.95595585,0.00023222,2]
[408406447,1773571841607,-500.0,0.00023224,2]
[408406448,1773571841615,-151.0,0.00023224,2]
[408406449,1773571841624,-500.0,0.00023358,2]
[408406450,1773571841638,-606.60583664,0.00023358,2]
[408406451,1773571841648,-151.1911095,0.00023492,2]
[408406452,1773571841658,-471.87,0.00023803,2]
[408406453,1773571841667,-269.44644543,0.00024066,2]
[408406454,1773571841676,-16723.0971258,0.00024077,2]
[408406455,1773571841686,-471.87,0.00024199,2]
[408406456,1773571841695,-3628.49875437,0.00024251,18]
[408406457,1773571841706,-5961.3197056,0.00024271,2]
[408406458,1773571841716,-471.87,0.00024596,2]
[408406459,1773571841727,-3608.0,0.00024658,120]
[408406460,1773571841736,-150.0,0.00024658,2]
[408406461,1773571841745,-443.269646,0.00024666,30]
[408406462,1773571841754,-199662.877411,0.000249,3]
[408406463,1773571841763,-469.87233333,0.000249,3]
[408406464,1773571841771,-471.87413767,0.00024993,2]
[408406465,1773571841780,-500.0,0.00025,30]
[408406466,1773571841791,-500.0,0.00025,30]
[408406467,1773571841812,-500.0,0.00025,30]
[408406468,1773571841822,-500.0,0.00025,30]
[408406469,1773571841832,-500.0,0.00025,30]
[408406470,1773571841842,-500.0,0.00025,30]
[408406471,1773571841852,-500.0,0.00025,30]
[408406472,1773571841863,-500.0,0.00025,30]
[408406473,1773571841872,-500.0,0.00025,30]
[408406474,1773571841882,-500.0,0.00025,30]
[408406475,1773571841893,-500.0,0.00025,30]
[408406476,1773571841903,-150.0,0.00025,2]
[408406477,1773571841914,-500.0,0.00025,30]
[408406478,1773571841928,-501.40106128,0.00025,30]
[408406479,1773571841940,-500.0,0.00025,30]
[408406480,1773571841952,-500.0,0.00025,30]
[408406481,1773571841961,-500.0,0.00025,30]
[408406482,1773571841973,-500.0,0.00025,30]
[408406483,1773571841982,-500.0,0.00025,30]
[408406484,1773571841991,-500.0,0.00025,30]
[408406485,1773571842002,-500.0,0.00025,30]
[408406486,1773571842012,-500.0,0.00025,30]
[408406487,1773571842033,-500.0,0.00025,30]
[408406488,1773571842045,-500.0,0.00025,30]
[408406489,1773571842058,-500.0,0.00025,30]
[408406490,1773571842070,-500.0,0.00025,30]
[408406491,1773571842080,-500.0,0.00025,30]
[408406492,1773571842091,-500.0,0.00025,30]
[408406493,1773571842103,-500.0,0.00025,30]
[408406494,1773571842114,-500.0,0.00025,30]
[408406495,1773571842125,-500.0,0.00025,30]
[408406496,1773571842137,-500.0,0.00025,30]
[408406497,1773571842147,-500.0,0.00025,30]
[408406498,1773571842156,-500.0,0.00025,30]
[408406499,1773571842166,-500.0,0.00025,30]
[408406500,1773571842176,-500.0,0.00025,30]
[408406501,1773571842188,-500.0,0.00025,30]
[408406502,1773571842199,-500.0,0.00025,30]
[408406503,1773571842208,-500.0,0.00025,30]
[408406504,1773571842219,-500.0,0.00025,30]
[408406505,1773571842230,-500.0,0.00025,30]
[408406506,1773571842242,-500.0,0.00025,30]
[408406507,1773571842253,-500.0,0.00025,30]
[408406508,1773571842263,-500.0,0.00025,30]
[408406509,1773571842275,-500.0,0.00025,30]
[408406510,1773571842287,-500.0,0.00025,30]
[408406511,1773571842300,-500.0,0.00025,30]
[408406512,1773571842310,-469.87233333,0.00025,30]
[408406513,1773571842319,-244.26658027,0.00025014,2]
[408406514,1773571842330,-2000.0,0.000253,2]
[408406515,1773571842341,-3436.312,0.00025344,2]
[408406516,1773571842350,-1043.0,0.00025344,2]
[408406517,1773571842361,-1343.0,0.00025344,2]
[408406518,1773571842370,-620.0,0.00025344,2]
[408406519,1773571842380,-1284.339,0.00025344,2]
[408406520,1773571842390,-923.0,0.00025344,2]
[408406521,1773571842400,-1350.051,0.00025344,2]
[408406522,1773571842411,-425.351,0.00025344,2]
[408406523,1773571842420,-2480.446,0.00025344,2]
[408406524,1773571842433,-469.87233333,0.000256,3]
[408406525,1773571842442,-150.0,0.0002589,2]
[408406526,1773571842454,-518.0,0.00026,10]
[408406527,1773571842464,-195.10725217,0.00026252,14]
[408406528,1773571842473,-469.87233333,0.000264,3]
[408406529,1773571842483,-426.0,0.00026449,10]
[408406530,1773571842492,-14732.0,0.00026449,10]
[408406531,1773571842502,-195.11,0.00026598,14]
[408406532,1773571842513,-469.87233333,0.00027,10]
[408406533,1773571842522,-150.0,0.00027185,2]
[408406534,1773571842530,-320.19516941,0.0002735,2]
[408406535,1773571842540,-32247.41,0.00027397,10]
[408406536,1773571842549,-26872.84,0.00027397,10]
[408406537,1773571842562,-22394.03,0.00027397,10]
[408406538,1773571842573,-1561.23584404,0.00027863,2]
[408406539,1773571842582,-1043.0,0.00028344,2]
[408406540,1773571842591,-1343.0,0.00028344,2]
[408406541,1773571842601,-1260.0,0.00028344,2]
[408406542,1773571842610,-923.0,0.00028344,2]
[408406543,1773571842620,-414.0,0.00028344,2]
[408406544,1773571842632,-2464.0,0.00028344,2]
[408406545,1773571842642,-5961.3197056,0.00028429,2]
[408406546,1773571842652,-497.25498154,0.00028767,2]
[408406547,1773571842663,-23506.0,0.000288,2]
[408406548,1773571842673,-2000.0,0.00029,2]
[408406549,1773571842683,-5533.0,0.000293,3]
[408406550,1773571842696,-2718.33,0.00029373,2]
[408406551,1773571842707,-5533.0,0.000298,5]
[408406552,1773571842717,-152.0,0.00029985,3]
[408406553,1773571842726,-170.7,0.000302,7]
[408406554,1773571842735,-179.83,0.000302,7]
[408406555,1773571842745,-4205.19623497,0.00030426,35]
[408406556,1773571842755,-518.0,0.000305,14]
[408406557,1773571842765,-1043.0,0.00031344,2]
[408406558,1773571842774,-1260.0,0.00031344,2]
[408406559,1773571842783,-923.0,0.00031344,2]
[408406560,1773571842791,-414.0,0.00031344,2]
[408406561,1773571842801,-2464.0,0.00031344,2]
[408406562,1773571842811,-152.0,0.00031461,4]
[408406563,1773571842820,-202.0987232,0.00032365,5]
[408406564,1773571842829,-320.19516941,0.00032533,2]
[408406565,1773571842838,-5961.3197056,0.00032586,2]
[408406566,1773571842847,-2000.0,0.000327,2]
[408406567,1773571842857,-500.0,0.0003285,5]
[408406568,1773571842866,-12691.02240842,0.00032876,120]
[408406569,1773571842875,-159.64861887,0.00032877,2]
[408406570,1773571842884,-1499.24,0.000329,14]
[408406571,1773571842893,-152.0,0.00032937,5]
[408406572,1773571842902,-1375.84,0.00033,30]
[408406573,1773571842911,-4417.06,0.00033,2]
[408406574,1773571842920,-469.87233333,0.00033,120]
[408406575,1773571842930,-160.0,0.00033,120]
[408406576,1773571842940,-482.7910397,0.00033398,5]
[408406577,1773571842949,-7147.95157167,0.00033408,120]
[408406578,1773571842958,-476.24072742,0.00033408,120]
[408406579,1773571842967,-1614.51112024,0.00033408,120]
[408406580,1773571842976,-1485.0,0.00033878,5]
[408406581,1773571842985,-2401.0,0.00033878,5]
[408406582,1773571842994,-3426.9,0.00034229,2]
[408406583,1773571843004,-4342.22,0.00034229,2]
[408406584,1773571843013,-156.95,0.00034229,2]
[408406585,1773571843023,-5172.19,0.00034229,2]
[408406586,1773571843032,-7108.49,0.00034229,2]
[408406587,1773571843041,-259.77,0.00034229,2]
[408406588,1773571843050,-1000.0,0.00034229,2]
[408406589,1773571843059,-150.0,0.00034229,2]
[408406590,1773571843068,-559.58,0.00034229,2]
[408406591,1773571843077,-665.474,0.00034344,2]
[408406592,1773571843086,-923.0,0.00034344,2]
[408406593,1773571843094,-152.0,0.00034413,6]
[408406594,1773571843104,-214.0,0.00034475,14]
[408406595,1773571843113,-1500.0,0.00034795,2]
[408406596,1773571843122,-1097.9561291,0.00034904,20]
[408406597,1773571843131,-1143.1941624,0.00034904,20]
[408406598,1773571843140,-1119.74910899,0.00034904,20]
[408406599,1773571843150,-1143.90933641,0.00034904,20]
[408406600,1773571843159,-1038.09525834,0.00034904,20]
[408406601,1773571843169,-1013.83202073,0.00034904,20]
[408406602,1773571843178,-1029.79026719,0.00034904,20]
[408406603,1773571843187,-1039.85716642,0.00034904,20]
[408406604,1773571843196,-1499.24,0.00035,14]
[408406605,1773571843205,-518.0,0.00035,18]
[408406606,1773571843214,-200.42058914,0.00035,3]
[408406607,1773571843224,-500.0,0.00035014,2]
[408406608,1773571843233,-345.74478833,0.00035589,120]
[408406609,1773571843242,-150.0,0.00035616,20]
[408406610,1773571843252,-557.7037666,0.00035616,7]
[408406611,1773571843261,-557.7037666,0.00035616,7]
[408406612,1773571843270,-557.7037666,0.00035616,7]
[408406613,1773571843279,-557.7037666,0.00035616,7]
[408406614,1773571843288,-557.7037666,0.00035616,7]
[408406615,1773571843298,-557.7037666,0.00035616,7]
[408406616,1773571843307,-557.7037666,0.00035616,7]
[408406617,1773571843316,-557.7037666,0.00035616,7]
[408406618,1773571843326,-557.7037666,0.00035616,7]
[408406619,1773571843335,-557.7037666,0.00035616,7]
[408406620,1773571843344,-557.7037666,0.00035616,7]
[408406621,1773571843353,-557.7037666,0.00035616,7]
[408406622,1773571843363,-557.7037666,0.00035616,7]
[408406623,1773571843372,-557.7037666,0.00035616,7]
[408406624,1773571843381,-557.7037666,0.00035616,7]
[408406625,1773571843390,-557.7037666,0.00035616,7]
[408406626,1773571843400,-557.7037666,0.00035616,7]
[408406627,1773571843409,-557.7037666,0.00035616,7]
[408406628,1773571843419,-557.7037666,0.00035616,7]
[408406629,1773571843428,-557.7037666,0.00035616,7]
[408406630,1773571843437,-557.7037666,0.00035616,7]
[408406631,1773571843447,-597.53974991,0.00035616,7]
[408406632,1773571843456,-597.53974991,0.00035616,7]
[408406633,1773571843466,-597.53974991,0.00035616,7]
[408406634,1773571843475,-597.53974991,0.00035616,7]
[408406635,1773571843485,-597.53974991,0.00035616,7]
[408406636,1773571843494,-597.53974991,0.00035616,7]
[408406637,1773571843503,-597.53974991,0.00035616,7]
[408406638,1773571843512,-500.0,0.00035616,7]
[408406639,1773571843523,-291.17076125,0.00035616,7]
[408406640,1773571843532,-4417.06,0.000357,2]
[408406641,1773571843542,-150.0,0.00035854,2]
[408406642,1773571843676,-239.0,0.00035854,2]
[408406643,1773571843686,-500.0,0.00035863,2]
[408406644,1773571843698,-152.0,0.00035889,7]
[408406645,1773571843707,-1198.06,0.00036,120]
[408406646,1773571843717,-469.87233333,0.00036,7]
[408406647,1773571843727,-1375.84,0.000361,30]
[408406648,1773571843737,-175.0,0.00036335,7]
[408406649,1773571843746,-1506.959,0.0003635,45]
[408406650,1773571843756,-2000.0,0.000364,2]
[408406651,1773571843765,-246.1232,0.000365,30]
[408406652,1773571843775,-4664.5452539,0.00036601,56]
[408406653,1773571843784,-246.1232,0.000367,30]
[408406654,1773571843794,-5961.3197056,0.00036743,2]
[408406655,1773571843803,-820.4106,0.00036888,7]
[408406656,1773571843812,-246.1232,0.000369,30]
[408406657,1773571843822,-246.1232,0.000371,30]
[408406658,1773571843831,-1499.24,0.000372,14]
[408406659,1773571843840,-246.1232,0.000373,30]
[408406660,1773571843849,-923.0,0.00037344,2]
[408406661,1773571843859,-152.0,0.00037365,8]
[408406662,1773571843868,-4417.06,0.000374,2]
[408406663,1773571843877,-246.1232,0.000375,30]
[408406664,1773571843886,-167.91,0.00037513,2]
[408406665,1773571843895,-167.91,0.00037513,2]
[408406666,1773571843905,-156.95,0.00037654,2]
[408406667,1773571843914,-246.1232,0.000377,30]
[408406668,1773571843924,-320.19516941,0.00037717,2]
[408406669,1773571843933,-246.1232,0.000379,30]
[408406670,1773571843943,-1800.0,0.000379,13]
[408406671,1773571843952,-150.80042107,0.00038056,2]
[408406672,1773571843961,-296.57517427,0.000381,33]
[408406673,1773571843970,-246.1232,0.000381,30]
[408406674,1773571843979,-246.1232,0.000383,30]
[408406675,1773571843989,-1000.0,0.00038356,120]
[408406676,1773571843998,-246.1232,0.000385,30]
[408406677,1773571844008,-500.0,0.00038517,2]
[408406678,1773571844017,-500.0,0.00038517,2]
[408406679,1773571844026,-500.0,0.00038517,2]
[408406680,1773571844036,-500.0,0.00038517,2]
[408406681,1773571844045,-500.0,0.00038517,2]
[408406682,1773571844054,-500.0,0.00038517,2]
[408406683,1773571844064,-500.0,0.00038517,2]
[408406684,1773571844074,-500.0,0.00038517,2]
[408406685,1773571844083,-500.0,0.00038517,2]
[408406686,1773571844092,-500.0,0.00038517,2]
[408406687,1773571844101,-500.0,0.00038517,2]
[408406688,1773571844110,-500.0,0.00038517,2]
[408406689,1773571844119,-500.0,0.00038517,2]
[408406690,1773571844128,-500.0,0.00038517,2]
[408406691,1773571844137,-500.0,0.00038517,2]
[408406692,1773571844146,-500.0,0.00038517,2]
[408406693,1773571844156,-500.0,0.00038517,2]
[408406694,1773571844164,-500.0,0.00038517,2]
[408406695,1773571844174,-500.0,0.00038517,2]
[408406696,1773571844184,-500.0,0.00038517,2]
[408406697,1773571844193,-500.0,0.00038517,2]
[408406698,1773571844202,-500.0,0.00038517,2]
[408406699,1773571844211,-500.0,0.00038517,2]
[408406700,1773571844221,-500.0,0.00038517,2]
[408406701,1773571844230,-500.0,0.00038517,2]
[408406702,1773571844240,-500.0,0.00038517,2]
[408406703,1773571844249,-500.0,0.00038517,2]
[408406704,1773571844258,-500.0,0.00038517,2]
[408406705,1773571844268,-500.0,0.00038517,2]
[408406706,1773571844277,-500.0,0.00038517,2]
[408406707,1773571844286,-500.0,0.00038517,2]
[408406708,1773571844295,-500.0,0.00038517,2]
[408406709,1773571844305,-500.0,0.00038517,2]
[408406710,1773571844314,-500.0,0.00038517,2]
[408406711,1773571844325,-500.0,0.00038517,2]
[408406712,1773571844334,-500.0,0.00038517,2]
[408406713,1773571844343,-500.0,0.00038517,2]
[408406714,1773571844353,-500.0,0.00038517,2]
[408406715,1773571844362,-500.0,0.00038517,2]
[408406716,1773571844372,-500.0,0.00038517,2]
[408406717,1773571844381,-500.0,0.00038517,2]
[408406718,1773571844390,-500.0,0.00038517,2]
[408406719,1773571844399,-500.0,0.00038517,2]
[408406720,1773571844409,-500.0,0.00038517,2]
[408406721,1773571844418,-500.0,0.00038517,2]
[408406722,1773571844427,-500.0,0.00038517,2]
[408406723,1773571844436,-500.0,0.00038517,2]
[408406724,1773571844446,-560.0,0.00038517,2]
[408406725,1773571844455,-1000.0,0.0003863,120]
[408406726,1773571844465,-500.0,0.000387,120]
[408406727,1773571844474,-246.1232,0.000387,30]
[408406728,1773571844484,-152.0,0.0003884,9]
[408406729,1773571844493,-227.0,0.00038847,14]
[408406730,1773571844503,-152.0,0.00038854,3]
[408406731,1773571844512,-246.1232,0.000389,30]
[408406732,1773571844521,-1000.0,0.00038904,120]
[408406733,1773571844530,-1206.8992,0.0003895,2]
[408406734,1773571844539,-10000.0,0.0003895,2]
[408406735,1773571844548,-5838.24569422,0.0003895,2]
[408406736,1773571844559,-51911.7,0.00039,120]
[408406737,1773571844571,-469.87233333,0.00039,120]
[408406738,1773571844580,-2600.0,0.00039082,14]
[408406739,1773571844590,-1700.0,0.00039082,14]
[408406740,1773571844599,-700.0,0.00039082,14]
[408406741,1773571844609,-246.1232,0.000391,30]
[408406742,1773571844619,-1000.0,0.00039178,120]
[408406743,1773571844628,-1499.24,0.000392,14]
[408406744,1773571844638,-246.1232,0.000393,30]
[408406745,1773571844647,-151.0,0.00039439,14]
[408406746,1773571844656,-1000.0,0.00039452,120]
[408406747,1773571844665,-1375.84,0.000395,30]
[408406748,1773571844675,-518.0,0.000395,22]
[408406749,1773571844684,-246.1232,0.000397,30]
[408406750,1773571844692,-512.75059119,0.00039726,120]
[408406751,1773571844702,-1000.0,0.00039726,120]
[408406752,1773571844712,-1527.99559368,0.00039753,2]
[408406753,1773571844721,-4417.06,0.000398,30]
[408406754,1773571844730,-246.1232,0.000399,30]
[408406755,1773571844739,-2600.0,0.00039904,14]
[408406756,1773571844748,-1700.0,0.00039904,14]
[408406757,1773571844758,-700.0,0.00039904,14]
[408406758,1773571844767,-651.54591552,0.0003997,2]
[408406759,1773571844776,-206.04,0.0004,120]
[408406760,1773571844785,-161.0,0.0004,120]
[408406761,1773571844796,-165.0,0.0004,120]
[408406762,1773571844805,-197.23320003,0.0004,120]
[408406763,1773571844815,-846.08498289,0.0004,30]
[408406764,1773571844824,-151.22,0.0004,2]
[408406765,1773571844834,-151.22,0.0004,2]
[408406766,1773571844843,-151.22,0.0004,2]
[408406767,1773571844854,-151.22,0.0004,2]
[408406768,1773571844864,-151.22,0.0004,2]
[408406769,1773571844873,-151.22,0.0004,2]
[408406770,1773571844883,-151.22,0.0004,2]
[408406771,1773571844894,-151.22,0.0004,2]
[408406772,1773571844905,-151.22,0.0004,2]
[408406773,1773571844915,-151.22,0.0004,2]
[408406774,1773571844926,-151.22,0.0004,2]
[408406775,1773571844936,-151.22,0.0004,2]
[408406776,1773571844947,-151.22,0.0004,2]
[408406777,1773571844956,-151.22,0.0004,2]
[408406778,1773571844966,-151.22,0.0004,2]
[408406779,1773571844975,-151.22,0.0004,2]
[408406780,1773571844985,-151.22,0.0004,2]
[408406781,1773571844994,-151.22,0.0004,2]
[408406782,1773571845003,-151.22,0.0004,2]
[408406783,1773571845012,-151.22,0.0004,2]
[408406784,1773571845021,-151.22,0.0004,2]
[408406785,1773571845030,-151.22,0.0004,2]
[408406786,1773571845042,-151.22,0.0004,2]
[408406787,1773571845051,-151.22,0.0004,2]
[408406788,1773571845060,-1000.0,0.0004,120]
[408406789,1773571845069,-1917.56621814,0.00040005,20]
[408406790,1773571845078,-2000.0,0.000401,2]
[408406791,1773571845087,-246.1232,0.000401,30]
[408406792,1773571845099,-358.26939486,0.0004012,9]
[408406793,1773571845110,-350.0,0.00040268,9]
[408406794,1773571845121,-1000.0,0.00040274,120]
[408406795,1773571845132,-420317.91830508,0.00040299,2]